Workbook

Sheet от 3 до 7 лет
A1: Утверждаю | H1: Согласовано
A2: Директор ООО"АБК - Пэймент" | H2: Руководитель дошкольной образовательной
A3: Рахматуллин Р.Р. | H3: организации
C8: Примерное 10-дневное меню
C9: для организации питания детей в дошкольных учреждениях
C10: с 12 - часовым пребыванием от 3 до 7 лет
A12: День 1 - ый
A13: Наименование блюд и | C13: Масса | D13: Кол - во | E13: Кол - во | F13: Пищевые вещества | I13: Энергетическая | J13: Витамин | K13: Сборник рецептур
A14: продуктов | C14: порции | D14: (в гр ) | E14: (в гр ) | I14: ценность
D15: брутто | E15: нетто | F15: белки | G15: жиры | H15: угл-ды | I15: Ккал | J15: С
B16: ЗАВТРАК
A17: Каша "Дружба" молочная | C17: 200 | F17: 5.16 | G17: 3.47 | H17: 23.13 | I17: 144.50 | J17: 0.21 | K17: ТТК №7Д
B18: Крупа рисовая | D18: 15.00 | E18: 15.00
B19: Крупа пшенная | D19: 11.00 | E19: 11.00
B20: Молоко | D20: 100.00 | E20: 100.00
B21: Вода | D21: 76.00 | E21: 76.00
B22: Сахар | D22: 5.00 | E22: 5.00
B23: соль иодированная | D23: 1.00 | E23: 1.00
A24: Масло сливочное порционно | C24: 5 | F24: 0.04 | G24: 3.63 | H24: 0.07 | I24: 33.00 | K24: №14 сб шк 2017
B25: Масло сливочное | D25: 5 | E25: 5
A26: Кофейный напиток с молоком | C26: 180 | F26: 2.85 | G26: 2.41 | H26: 14.36 | I26: 91.00 | J26: 0.19 | K26: №395 Дели2010
B27: Кофейный напиток | D27: 2.50 | E27: 2.50
B28: Сахар | D28: 10.00 | E28: 10.00
B29: Молоко | D29: 90.00 | E29: 90.00
B30: Вода | D30: 108.00 | E30: 108.00
A31: Бутерброд с маслом сливочным | C31: 30/5 | F31: 2.30 | G31: 4.50 | H31: 15.40 | I31: 111.00 | K31: №1 Дели2010
B32: Батон нарезной | D32: 30.00 | E32: 30.00
B33: Масло сливочное | D33: 5.00 | E33: 5.00
A34: Итого: | C34: 420 | F34: =F17+F26+F31+F24 -> 10.35 | G34: =G17+G26+G31+G24 -> 14.01 | H34: 52.96 | I34: 379.50 | J34: 0.40
B35: 2 - ой ЗАВТРАК
A36: Кисломолочный напиток | C36: 180/5 | F36: 5.22 | G36: 4.50 | H36: 12.19 | I36: 109.95 | J36: 1.26 | K36: №420 СБ дошк 2016
A37: (Кефир,ряженка,катык,напиток ацидофильный) | B37: кисломолочный напиток | D37: 185.00 | E37: 180.00
B38: сахар | D38: 5.00 | E38: 5.00
A39: Итого: | C39: 185 | F39: =F36 -> 5.22 | G39: =G36 -> 4.50 | H39: 12.19 | I39: 109.95 | J39: 1.26
B40: ОБЕД
A41: Салат из моркови с сахаром | C41: 60 | F41: 0.75 | G41: 0.06 | H41: 6.97 | I41: 31.40 | K41: №42 СБ дошк 2016
B42: морковь | D42: 72.50 | E42: 58.00
B43: сахар | D43: 3.00 | E43: 3.00
A44: Суп со звездочами с картофелем с куриными фрикадельками | C44: 180/15 | F44: 4.12 | G44: 4.23 | H44: 13.76 | I44: 118.41 | J44: 5.01 | K44: №88,сб дошк2016
B45: цыплята - бройлеры с/м | D45: 26.3 | E45: 17.1
B46: или фарш куриный | D46: 17.1 | E46: 17.1
B47: Лук репчатый | D47: 1.79 | E47: 1.5
B48: Яйцо | D48: 1.44 | E48: 1.2
B49: Вода для фарша | D49: 1.5 | E49: 1.5
B50: соль иодированная | D50: 0.15 | E50: 0.15
B51: Масса полуфабриката | E51: 21.5
B52: масса готовых фрикаделек | E52: 15
B53: Картофель | D53: 79.80 | E53: 60.00
B54: Морковь | D54: 10.00 | E54: 8.00
B55: Лук репчатый | D55: 9.52 | E55: 8.00
B56: суповая засыпка (звездочки) | D56: 8.00 | E56: 8.00
B57: Масло растительное | D57: 4.00 | E57: 4.00
B58: соль иодированная | D58: 1.20 | E58: 1.20
B59: Вода | D59: 132.00 | E59: 132.00
A60: Котлеты рубленые из говядины | C60: 70 | F60: 10.43 | G60: 7.70 | H60: 10.19 | I60: 151.38 | K60: СБ дошкольн. №299, 2016
B61: говядина б/к (котлетное мясо) | D61: 51.16 | E61: 49
B62: или фарш говяжий | D62: 49 | E62: 49
B63: Лук репчатый | D63: 14.64 | E63: 12.3
B64: Хлеб пшеничный | D64: 11 | E64: 11
B65: Вода | D65: 14.7 | E65: 14.7
B66: Сухари панировочные | D66: 4.00 | E66: 4.00
B67: соль иодированная | D67: 0.7 | E67: 0.7
B68: масса полуфабриката | E68: 75.3
B69: масло растительное | D69: 1 | E69: 1
A70: Капуста тушеная | C70: 150 | F70: 3.30 | G70: 4.90 | H70: 14.10 | I70: 114.60 | J70: 24.70 | K70: №354 сбдошк2016
B71: Капуста свежая | D71: 215.00 | E71: 172.00
B72: Лук репчатый | D72: 7.14 | E72: 6.00
B73: Морковь | D73: 3.75 | E73: 3.00
B74: Мука пшеничная | D74: 1.80 | E74: 1.80
B75: Масло растительное | D75: 5.25 | E75: 5.25
B76: Сахар | D76: 4.50 | E76: 4.50
B77: соль иодированная | D77: 1.00 | E77: 1.00
A78: Сок (или нектар) | C78: 200 | D78: 200 | E78: 200 | F78: 1.00 | G78: 0.00 | H78: 20.20 | I78: 85.34 | J78: 4.00 | K78: №418 сб дошк 2016
A79: в ассортименте
A80: Хлеб ржаной | C80: 45 | D80: 45.00 | E80: 45.00 | F80: 2.98 | G80: 0.54 | H80: 17.82 | I80: 89.10 | K80: табл 6 стр 144,Дели + 2012
A81: Итого: | C81: 720 | F81: =F41+F44+F60+F70+F78+F80 -> 22.58 | G81: =G41+G44+G60+G70+G78+G80 -> 17.43 | H81: =H41+H44+H60+H70+H78+H80 -> 83.04 | I81: =I41+I44+I60+I70+I78+I80 -> 590.23 | J81: =J41+J44+J60+J70+J78+J80 -> 33.71
B82: УПЛОТНЕННЫЙ ПОЛДНИК
A83: Булочка дорожная | C83: 50 | F83: 3.39 | G83: 6.98 | H83: 26.07 | I83: 181.00 | K83: №453 сб дошк2016
B84: Мука пшеничная | D84: 30.50 | E84: 30.00
B85: мука пшеничная на подпыл | D85: 1.00 | E85: 1.00
B86: Сахар | D86: 6.00 | E86: 6.00
B87: Масло сливочное | D87: 6.50 | E87: 6.50
B88: соль иодированная | D88: 0.30 | E88: 0.30
B89: дрожжи сухие | D89: 0.20 | E89: 0.20
B90: вода | D90: 15.30 | E90: 15.30
B91: масса полуфабриката | E91: 57.00
B92: для крошки:
B93: мука пшеничная | D93: 1.20 | E93: 1.20
B94: масло сливочное | D94: 1.00 | E94: 1.00
B95: масса крошки | E95: 2.00
B96: масло растительное для смазки изделй | D96: 1.00 | E96: 1.00
A97: Пудинг рыбный | C97: 80/30 | F97: 14.60 | G97: 9.00 | H97: 10.80 | I97: 182.00 | K97: №286 СБ дошк 2016
B98: рыба (минтай с/м БГ) | D98: 91.1 | E98: 67
B99: масса отварной рыбы | E99: 53
B100: Хлеб пшеничный | D100: 11 | E100: 11
B101: яйцо | D101: 8.4 | E101: 7
B102: молоко | D102: 16 | E102: 16
B103: масло сливочное | D103: 3 | E103: 3
B104: соль иодированная | D104: 0.5 | E104: 0.5
B105: Масло растительное | D105: 1.3 | E105: 1.3
B106: Соус молочный
B107: молоко | D107: 15 | E107: 15
B108: масло сливочное | D108: 1.65 | E108: 1.65
B109: Мука пшеничная | D109: 1.65 | E109: 1.65
B110: Вода | D110: 15 | E110: 15
B111: Сахар | D111: 0.3 | E111: 0.3
B112: соль иодированная | D112: 0.2 | E112: 0.2
B113: масса соуса | E113: 30
A114: Пюре Картофельное | C114: 140 | F114: 2.86 | G114: 4.48 | H114: 19.07 | I114: 128.10 | J114: 0.23 | K114: № 339 СБ дошк 2016
B115: Картофель | D115: 159.60 | E115: 119.70
B116: Молоко | D116: 22.12 | E116: 21.00
B117: Масло сливочное | D117: 5.00 | E117: 5.00
B118: соль иодированная | D118: 0.52 | E118: 0.52
A119: Чай с сахаром | C119: 180/10 | F119: 0.10 | G119: 0.02 | H119: 10.00 | I119: 40.00 | K119: № 392 Дели 2010
B120: чай весовой | D120: 0.45 | E120: 0.45
B121: сахар | D121: 10.00 | E121: 10.00
B122: Вода | D122: 180.00 | E122: 180.00
A123: Хлеб пшеничный | C123: 20 | D123: 20 | E123: 20 | F123: 1.52 | G123: 0.16 | H123: 9.84 | I123: 47.00 | J123: 0.00 | K123: табл 6 стр 134,Дели + 2012
A124: Итого: | C124: 510 | F124: =F83+F97+F114+F119+F123 -> 22.47 | G124: =G83+G97+G114+G119+G123 -> 20.64 | H124: 75.78 | I124: 578.10 | J124: 0.23
A125: ВСЕГО: | C125: =C34+C39+C81+C124 -> 1835.00 | F125: =F34+F39+F81+F124 -> 60.62 | G125: =G34+G39+G81+G124 -> 56.58 | H125: 223.97 | I125: 1657.78 | J125: 35.60
A127: День 2- ой
A128: Наименование блюд и | C128: Масса | D128: Кол - во | E128: Кол - во | F128: Пищевые вещества | I128: Энергетическая | J128: Витамин | K128: Сборник
A129: продуктов | C129: порции | D129: (в гр ) | E129: (в гр ) | I129: ценность | K129: рецептур
D130: брутто | E130: нетто | F130: белки | G130: жиры | H130: угл-ды | I130: Ккал | J130: С
B131: ЗАВТРАК
A132: Каша полбяная молочная | C132: 200 | F132: 5.83 | G132: 0.35 | H132: 25.75 | I132: 129.85 | K132: ТТК №1Д
B133: Крупа полбяная | D133: 25.00 | E133: 25.00
B134: Молоко | D134: 100.00 | E134: 100.00
B135: вода | D135: 76.00 | E135: 76.00
B136: Сахар | D136: 5.00 | E136: 5.00
B137: соль иодированная | D137: 1.00 | E137: 1.00
A138: Масло сливочное порционно | C138: 5 | F138: 0.04 | G138: 3.62 | H138: 0.07 | I138: 33.00 | K138: №6 сб дошк 2016
B139: Масло сливочное | D139: 5.00 | E139: 5.00
A140: Какао с молоком | C140: 180 | F140: 3.67 | G140: 3.19 | H140: 15.82 | I140: 107.00 | J140: 0.39 | K140: №397 Дели2010
B141: Какао-порошок | D141: 2.00 | E141: 2.00
B142: Сахар | D142: 10.00 | E142: 10.00
B143: Молоко | D143: 110.00 | E143: 110.00
B144: Вода | D144: 80.00 | E144: 80.00
A145: Бутерброд с сыром, маслом сливочным | C145: 30/10/5 | F145: 5.59 | G145: 8.00 | H145: 15.40 | I145: 156.40 | J145: 0.21 | K145: №3 сб дошк2016
B146: Батон нарезной | D146: 30.00 | E146: 30.00
B147: Сыр | D147: 10.20 | E147: 10.00
B148: Масло сливочное | D148: 5.00 | E148: 5.00
A149: Итого: | C149: 430 | F149: =F132+F140+F145+F138 -> 15.13 | G149: =G132+G140+G145+G138 -> 15.16 | H149: 57.04 | I149: 426.25 | J149: 0.60
B150: 2 - ой ЗАВТРАК
A151: Кисломолочный напиток | C151: 180 | F151: 5.22 | G151: 4.50 | H151: 7.56 | I151: 92.00 | J151: 0.54 | K151: №420 СБ дошк 2016
A152: (Кефир,ряженка,катык,напиток ацидофильный) | B152: кисломолочный напиток | D152: 185 | E152: 180
A153: Итого: | C153: 180 | F153: =F151 -> 5.22 | G153: =G151 -> 4.50 | H153: 7.56 | I153: 92.00 | J153: 0.54
B154: ОБЕД
A155: Салат из картофеля с солеными огурцами | C155: 60 | F155: 0.82 | G155: 3.13 | H155: 5.14 | I155: 51.96 | J155: 7.20 | K155: №23 сб дошк2016
B156: огурцы соленые | D156: 32.76 | E156: 18.00
B157: картофель | D157: 32.90 | E157: 24.00
B158: морковь | D158: 15.36 | E158: 12.00
B159: лук репчатый | D159: 3.60 | E159: 3.00
B160: масло растительное | D160: 3.00 | E160: 3.00
A161: Борщ со свежей капустой, картофелем на м/б,со сметаной | C161: 180/7 | F161: 1.50 | G161: 3.90 | H161: 9.50 | I161: 79.00 | J161: 6.36 | K161: №110, сб шк2004
B162: Капуста свежая | D162: 20.00 | E162: 16.00
B163: Картофель | D163: 21.28 | E163: 16.00
B164: Морковь | D164: 12.50 | E164: 10.00
B165: Лук репчатый | D165: 9.52 | E165: 8.00
B166: Свекла | D166: 41.00 | E166: 32.00
B167: Сахар | D167: 2.40 | E167: 2.40
B168: Томат-паста | D168: 1.00 | E168: 1.00
B169: Масло растительное | D169: 4.00 | E169: 4.00
B170: соль иодированная | D170: 2.00 | E170: 2.00
B171: Бульон | D171: 140.00 | E171: 140.00
B172: Сметана | D172: 7.00 | E172: 7.00
A173: Плов из отварной говядины | C173: 200 | F173: 15.60 | G173: 15.00 | H173: 28.00 | I173: 309.50 | J173: 0.65 | K173: №443,сбшк2004
B174: говядина (лопатка б/к) | D174: 52.00 | E174: 52.0
B175: масса отварного мяса | E175: 32.0
B176: масло сливочное | D176: 8.0 | E176: 8.0
B177: Лук репчатый | D177: 11.9 | E177: 10.00
B178: Морковь | D178: 16.3 | E178: 13.00
B179: Крупа рисовая | D179: 55.0 | E179: 55.0
B180: вода | D180: 86.0 | E180: 86.0
B181: соль иодированная | D181: 2.0 | E181: 2.0
B182: масса гарнира | E182: 168.0
A183: Кисель | C183: 180 | H183: 18.00 | I183: 72.00 | K183: № 648, сб шк2004
B184: Кисель-концентрат | D184: 21.00 | E184: 21.00
B185: Сахар | D185: 9.00 | E185: 9.00
B186: вода | D186: 180.00 | E186: 180.00
A187: Хлеб пшеничный | C187: 25 | D187: 25.00 | E187: 25.00 | F187: 1.90 | G187: 0.20 | H187: 12.30 | I187: 58.75 | J187: 0.00 | K187: табл 6 стр 134,Дели + 2012
A188: Хлеб ржаной | C188: 45 | D188: 45.00 | E188: 45.00 | F188: 2.98 | G188: 0.54 | H188: 17.82 | I188: 89.10 | K188: табл 6 стр 144,Дели + 2012
A189: Итого: | C189: 697 | F189: =F155+F161+F173+F183+F187+F188 -> 22.80 | G189: =G155+G161+G173+G183+G187+G188 -> 22.77 | H189: =H155+H161+H173+H183+H187+H188 -> 90.76 | I189: =I155+I161+I173+I183+I187+I188 -> 660.31 | J189: =J155+J161+J173+J183+J187+J188 -> 14.21
B190: УПЛОТНЕННЫЙ ПОЛДНИК
A191: Кондитерское изделие | B191: крекер | C191: 20 | D191: 20.00 | E191: 20.00 | F191: 1.80 | G191: 3.60 | H191: 12.80 | I191: 90.00
A192: Фрукты свежие | C192: 100 | D192: 114 | E192: 100 | F192: 0.40 | G192: 0.40 | H192: 9.80 | I192: 44.00 | J192: 10.00 | K192: №386 СБ
A193: (яблоки,или апельсин, или банан,или мандарин ) | K193: дошк.2016
A194: Запеканка творожная с повидлом | C194: 120/30 | F194: 21.17 | G194: 14.47 | H194: 40.09 | I194: 372.60 | J194: 0.44 | K194: №251, сбдошк 2016
B195: Творог | D195: 112.20 | E195: 110.00
B196: Крупа манная | D196: 7.20 | E196: 7.20
B197: Яйцо | D197: 6.00 | E197: 5.00
B198: Сахар | D198: 9.60 | E198: 9.60
B199: Сметана | D199: 4.80 | E199: 4.80
B200: Масло сливочное | D200: 4.80 | E200: 4.80
B201: Сухари панировочные | D201: 4.80 | E201: 4.80
B202: соль иодированная | D202: 0.60 | E202: 0.60
B203: повидло | D203: 30.00 | E203: 30.00
A204: Чай с сахаром и лимоном | C204: 180/10/7 | F204: 0.12 | G204: 0.02 | H204: 10.20 | I204: 41.00 | K204: № 393 Дели2010
B205: чай весовой | D205: 0.45 | E205: 0.45
B206: Сахар | D206: 10.00 | E206: 10.00
... 862 more rows

Sheet от 1года до 3 лет
A1: Утверждаю | H1: Согласовано
A2: Директор ООО"АБК - Пэймент" | H2: Руководитель дошкольной образовательной
A3: Рахматуллин Р.Р. | H3: организации
E6: Примерное 10-дневное меню
E7: для организации питания детей в дошкольных учреждениях
E8: с 12 - часовым пребыванием от 1 года до 3 лет
A10: День 1 - ый
A11: Наименование блюд и | C11: Масса | D11: Кол - во | E11: Кол - во | F11: Пищевые вещества | I11: Энергетическая | J11: витамин | K11: Сборник
A12: продуктов | C12: порции | D12: (в гр ) | E12: (в гр ) | I12: ценность | K12: рецептур
D13: брутто | E13: нетто | F13: белки | G13: жиры | H13: угл-ды | I13: Ккал | J13: С
A15: Каша "Дружба" молочная | C15: 150 | F15: 2.51 | G15: 0.95 | H15: 18.00 | I15: 88.50 | K15: ТТК №7Д
B16: Крупа рисовая | D16: 11 | E16: 11
B17: Крупа пшенная | D17: 8 | E17: 8
B18: Молоко | D18: 80 | E18: 80
B19: Вода | D19: 52 | E19: 52
B20: Сахар | D20: 4 | E20: 4
B21: соль иодированная | D21: 0.8 | E21: 0.8
A22: Масло сливочное порционно | C22: 5 | F22: 0.04 | G22: 3.63 | H22: 0.07 | I22: 33.00 | K22: №6 сб дошк 2016
B23: Масло сливочное | D23: 5 | E23: 5
A24: Кофейный напиток с молоком | C24: 165 | F24: 2.57 | G24: 2.2 | H24: 11.69 | I24: 77 | J24: 0.16 | K24: №395Дели2010
B25: Кофейный напиток | D25: 2 | E25: 2
B26: Сахар | D26: 7.7 | E26: 7.7
B27: Молоко | D27: 75 | E27: 75
B28: вода | D28: 106 | E28: 106
A29: Бутерброд с маслом сливочным | C29: 25/5 | F29: 1.9 | G29: 4.4 | H29: 13 | I29: 99 | K29: №1 Дели2010
B30: Батон нарезной | D30: 25 | E30: 25
B31: Масло сливочное | D31: 5 | E31: 5
A32: Итого: | C32: 350 | F32: =F15+F24+F29+F22 -> 7.02 | G32: =G15+G24+G29+G22 -> 11.18 | H32: 42.76 | I32: 297.50 | J32: 0.16
B33: 2 - ой ЗАВТРАК
A34: Кисломолочный напиток | C34: 150/5 | F34: 4.35 | G34: 3.75 | H34: 10.99 | I34: 94.95 | J34: 1.05 | K34: №420 Сб дошк 2016
A35: (Кефир,ряженка,катык,напиток ацидофильный) | B35: кисломолочный напиток | D35: 155 | E35: 150
B36: сахар | D36: 5 | E36: 5
A37: Итого: | C37: 155 | F37: =F34 -> 4.35 | G37: =G34 -> 3.75 | H37: 10.99 | I37: 94.95 | J37: 1.05
B38: ОБЕД
A39: Салат из моркови с сахаром | C39: 40 | F39: 0.50 | G39: 0.04 | H39: 4.65 | I39: 20.93 | K39: №42 СБ дошк 2016
B40: морковь | D40: 48.00 | E40: 38.00
B41: сахар | D41: 2.00 | E41: 2.00
A42: Суп со звездочами с картофелем с куриными фрикадельками | C42: 150/10 | F42: 2.90 | G42: 2.99 | H42: 10.20 | I42: 85.97 | J42: 3.75 | K42: 140сбшк2004
B43: цыплята - бройлеры с/м | D43: 17.5 | E43: 11.4
B44: или фарш куриный | D44: 11.4 | E44: 11.4
B45: Лук репчатый | D45: 1.19 | E45: 1
B46: Яйцо | D46: 0.96 | E46: 0.8
B47: Вода для фарша | D47: 1 | E47: 1
B48: соль иодированная | D48: 0.1 | E48: 0.1
B49: масса готовых фрикаделек | E49: 10
B50: Картофель | D50: 59.90 | E50: 45.00
B51: Морковь | D51: 7.50 | E51: 6.00
B52: Лук репчатый | D52: 7.14 | E52: 6.00
B53: суповая засыпка (звездочки) | D53: 6.00 | E53: 6.00
B54: Масло растительное | D54: 3.00 | E54: 3.00
B55: соль иодированная | D55: 1.00 | E55: 1.00
B56: Вода | D56: 114.00 | E56: 114.00
A57: Котлеты рубленные из говядины | C57: 50 | F57: 7.45 | G57: 5.50 | H57: 7.28 | I57: 108.13 | K57: СБ дошкольн. №299, 2016
B58: говядина (котлетное мясо б/к) | D58: 36.57 | E58: 35
B59: или фарш говяжий | D59: 35 | E59: 35
B60: лук репчатый | D60: 10.4 | E60: 8.75
B61: Хлеб пшеничный | D61: 8.13 | E61: 8.13
B62: Вода | D62: 5.2 | E62: 5.2
B63: сухари панировочные | D63: 2.8 | E63: 2.8
B64: соль иодированная | D64: 0.4 | E64: 0.4
B65: масса полуфабриката | E65: 61.9
B66: Масло растительное | D66: 0.60 | E66: 0.60
A67: Капуста тушеная | C67: 120 | F67: 2.48 | G67: 3.88 | H67: 11.31 | I67: 90.12 | J67: 20.59 | K67: №354 сбдошк2016
B68: Капуста свежая | D68: 172 | E68: 137.6
B69: Лук репчатый | D69: 5.71 | E69: 4.8
B70: Морковь | D70: 3 | E70: 2.4
B71: Мука пшеничная | D71: 1.44 | E71: 1.44
B72: Масло растительное | D72: 4.2 | E72: 4.2
B73: Сахар | D73: 3.6 | E73: 3.6
B74: соль иодированная | D74: 0.8 | E74: 0.8
A75: Сок | C75: 200 | D75: 200 | E75: 200 | F75: 1.00 | G75: 0.00 | H75: 20.20 | I75: 85.34 | J75: 4.00 | K75: №418 сб дошк 2016
A76: в ассортименте в инд.упаковке
A77: Хлеб пшеничный | C77: 25 | D77: 25.00 | E77: 25.00 | F77: 1.90 | G77: 0.20 | H77: 12.30 | I77: 58.75 | J77: 0.00 | K77: табл 6 стр 134,Дели + 2012
A78: Хлеб ржаной | C78: 40 | D78: 40 | E78: 40 | F78: 2.64 | G78: 0.48 | H78: 15.84 | I78: 79.2 | K78: табл 6 стр 144,Дели + 2012
A79: Итого: | C79: 635.00 | F79: =F39+F42+F57+F67+F75+F78+F77 -> 18.87 | G79: =G39+G42+G57+G67+G75+G78+G77 -> 13.09 | H79: 81.78 | I79: 528.44 | J79: 28.34
B80: УПЛОТНЕННЫЙ ПОЛДНИК
A81: Булочка дорожная | C81: 35 | F81: 2.73 | G81: 4.90 | H81: 18.25 | I81: 126.70 | K81: №453 сб дошк2016
B82: Мука пшеничная | D82: 21.35 | E82: 21.00
B83: мука пшеничная на подпыл | D83: 0.70 | E83: 0.70
B84: Сахар | D84: 4.20 | E84: 4.20
B85: Масло сливочное | D85: 4.55 | E85: 4.55
B86: соль иодированная | D86: 0.21 | E86: 0.21
B87: дрожжи сухие | D87: 0.14 | E87: 0.14
B88: вода | D88: 10.70 | E88: 10.70
B89: масса полуфабриката | E89: 39.90
B90: для крошки:
B91: мука пшеничная | D91: 0.84 | E91: 0.84
B92: масло сливочное | D92: 0.70 | E92: 0.70
B93: масса крошки | E93: 1.40
B94: масло растительное для смазки изделй | D94: 0.70 | E94: 0.70
A95: Пудинг рыбный | C95: 60/20 | F95: 11.23 | G95: 6.77 | H95: 8.12 | I95: 136.84 | K95: №286 СБ дошк 2016
B96: рыба (минтай с/м БГ) | D96: 68.34 | E96: 50.25
B97: масса отварной рыбы | E97: 39.75
B98: Хлеб пшеничный | D98: 8.25 | E98: 8.25
B99: яйцо | D99: 6.3 | E99: 5.25
B100: молоко | D100: 12 | E100: 12
B101: масло сливочное | D101: 2.25 | E101: 2.25
B102: соль иодированная | D102: 0.4 | E102: 0.4
B103: Масло растительное | D103: 1 | E103: 1
B104: масса пудинга | E104: 60
B105: Соус молочный
B106: молоко | D106: 10 | E106: 10
B107: масло сливочное | D107: 1.1 | E107: 1.1
B108: Мука пшеничная | D108: 1.1 | E108: 1.1
B109: Вода | D109: 10 | E109: 10
B110: Сахар | D110: 0.2 | E110: 0.2
B111: соль иодированная | D111: 0.13 | E111: 0.13
B112: масса соуса | E112: 20
A113: Пюре Картофельное | C113: 120 | F113: 2.46 | G113: 3.84 | H113: 16.35 | I113: 109.80 | J113: 0.20 | K113: № 339 СБ дошк 2016
B114: Картофель | D114: 136.80 | E114: 102.60
B115: Молоко | D115: 18.96 | E115: 18.00
B116: Масло сливочное | D116: 4.20 | E116: 4.20
B117: соль иодированная | D117: 0.45 | E117: 0.45
A118: Чай с сахаром | C118: 150/8 | F118: 0.04 | G118: 0.01 | H118: 6.99 | I118: 28 | J118: 0.04 | K118: №392 Дели2010
B119: чай весовой | D119: 0.4 | E119: 0.4
B120: Сахар | D120: 8 | E120: 8
B121: Вода | D121: 150 | E121: 150
A122: Хлеб пшеничный | C122: 20 | D122: 20.00 | E122: 20.00 | F122: 1.52 | G122: 0.16 | H122: 9.84 | I122: 47.00 | J122: 0.00 | K122: табл 6 стр 134,Дели + 2012
A123: Итого: | C123: 413.00 | F123: =F81+F95+F113+F118+F122 -> 17.98 | G123: =G81+G95+G113+G118+G122 -> 15.68 | H123: 59.55 | I123: 448.34 | J123: 0.24
A124: ВСЕГО: | C124: =C32+C37+C79+C123 -> 1553.00 | F124: =F32+F37+F79+F123 -> 48.22 | G124: =G32+G37+G79+G123 -> 43.70 | H124: 195.08 | I124: 1369.23 | J124: 29.79
A126: День 2- ой
A127: Наименование блюд и | C127: Масса | D127: Кол - во | E127: Кол - во | F127: Пищевые вещества | I127: Энергетическая | J127: Витамин | K127: Сборник
A128: продуктов | C128: порции | D128: (в гр ) | E128: (в гр ) | I128: ценность | K128: рецептур
D129: брутто | E129: нетто | F129: белки | G129: жиры | H129: угл-ды | I129: Ккал | J129: С
B130: ЗАВТРАК
A131: Каша полбяная молочная | C131: 150 | F131: 4.16 | G131: 0.17 | H131: 17.93 | I131: 90.00 | K131: ТТК №1Д
B132: Крупа полбяная | D132: 19 | E132: 19
B133: Молоко | D133: 80 | E133: 80
B134: вода | D134: 52 | E134: 52
B135: Сахар | D135: 4 | E135: 4
B136: соль иодированная | D136: 0.8 | E136: 0.8
A137: Масло сливочное порционно | C137: 5 | F137: 0.04 | G137: 3.62 | H137: 0.07 | I137: 33.00 | K137: №6 сб дошк 2016
B138: Масло сливочное | D138: 5 | E138: 5
A139: Какао с молоком | C139: 160 | F139: 3.47 | G139: 2.99 | H139: 14.26 | I139: 97.90 | J139: 0.32 | K139: №397 Дели2010
B140: Какао-порошок | D140: 1.7 | E140: 1.7
B141: Сахар | D141: 9 | E141: 9
B142: Молоко | D142: 92 | E142: 92
B143: вода | D143: 77 | E143: 77
A144: Бутерброд с сыром, маслом сливочным | C144: 25/5/5 | F144: 3.50 | G144: 5.95 | H144: 12.90 | I144: 119.60 | J144: 0.04 | K144: №3Дели2010
B145: Батон нарезной | D145: 25 | E145: 25
B146: Сыр | D146: 5.1 | E146: 5
B147: Масло сливочное | D147: 5 | E147: 5
A148: Итого: | C148: 350 | F148: =F131+F139+F144+F137 -> 11.17 | G148: =G131+G139+G144+G137 -> 12.73 | H148: 45.16 | I148: 340.50 | J148: 0.36
B149: 2 - ой ЗАВТРАК
A150: Кисломолочный напиток | C150: 150 | F150: 4.35 | G150: 3.75 | H150: 6.30 | I150: 76.00 | J150: 0.45 | K150: №420 Сб дошк 2016
A151: (кефир,ряженка,катык,напиток ацидофильный) | B151: кисломолочный напиток | D151: 155 | E151: 150
A152: Итого: | C152: 150 | F152: =F150 -> 4.35 | G152: =G150 -> 3.75 | H152: 6.30 | I152: 76.00 | J152: 0.45
B153: ОБЕД
A154: Салат из картофеля с солеными огурцами | C154: 40 | F154: 0.55 | G154: 2.09 | H154: 3.43 | I154: 34.64 | J154: 4.80 | K154: №23 сб дошк2016
B155: огурцы соленые | D155: 21.84 | E155: 12.00
B156: картофель | D156: 21.92 | E156: 16.00
B157: морковь | D157: 10.24 | E157: 8.00
B158: лук репчатый | D158: 2.40 | E158: 2.00
B159: масло растительное | D159: 2.00 | E159: 2.00
A160: Борщ со свежей капустой, картофелем на мясном бульоне,со сметаной | C160: 150/7 | F160: 1.10 | G160: 3.20 | H160: 7.20 | I160: 62.00 | J160: 4.80 | K160: №110,сбшк2004
B161: Капуста свежая | D161: 15.0 | E161: 12.0
B162: Картофель | D162: 15.96 | E162: 12.0
B163: Морковь | D163: 7.5 | E163: 6.0
B164: Лук репчатый | D164: 7.14 | E164: 6.0
B165: Свекла | D165: 30.72 | E165: 24.0
B166: Сахар | D166: 1.8 | E166: 1.8
B167: Масло растительное | D167: 3.0 | E167: 3.0
B168: соль иодированная | D168: 1.5 | E168: 1.5
B169: Бульон | D169: 120 | E169: 120.0
B170: Сметана | D170: 7.0 | E170: 7.0
A171: Плов из отварной говядины | C171: 150 | F171: 11.70 | G171: 11.70 | H171: 24.00 | I171: 248.30 | J171: 0.48 | K171: №443 сбшк2004
B172: говядина б/к (лопатка) | D172: 39.00 | E172: 39.0
B173: масса вареного мяса | E173: 24.0
B174: масло сливочное | D174: 5.0 | E174: 5.0
B175: Лук репчатый | D175: 8.9 | E175: 7.5
B176: Морковь | D176: 12.5 | E176: 10.0
B177: Крупа рисовая | D177: 32.0 | E177: 32.0
B178: вода | D178: 65.0 | E178: 65.0
B179: соль иодированная | D179: 1.3 | E179: 1.3
B180: масса гарнира | E180: 126.0
A181: Кисель | C181: 150 | H181: 15.00 | I181: 60.00 | K181: №648 сбшк2004
B182: Кисель-концентрат | D182: 17.50 | E182: 17.50
B183: Сахар | D183: 7.00 | E183: 7.00
B184: вода | D184: 150.00 | E184: 150.00
A185: Хлеб пшеничный | C185: 25 | D185: 25.00 | E185: 25.00 | F185: 1.90 | G185: 0.20 | H185: 12.30 | I185: 58.75 | J185: 0.00 | K185: табл 6 стр 134,Дели + 2012
A186: Хлеб ржаной | C186: 40 | D186: 40 | E186: 40 | F186: 2.64 | G186: 0.48 | H186: 15.84 | I186: 79.2 | K186: табл 6 стр 144,Дели + 2012
A187: Итого: | C187: 562 | F187: =F154+F160+F171+F181+F186+F185 -> 17.89 | G187: =G154+G160+G171+G181+G186+G185 -> 17.67 | H187: 77.77 | I187: 542.89 | J187: 10.08
B188: УПЛОТНЕННЫЙ ПОЛДНИК
A189: Кондитерское изделие | B189: крекер | C189: 15 | D189: 15.00 | E189: 15.00 | F189: 1.35 | G189: 2.70 | H189: 9.60 | I189: 67.47
A190: Фрукты свежие | C190: 95 | D190: 108.3 | E190: 95 | F190: 0.38 | G190: 0.38 | H190: 9.31 | I190: 41.80 | J190: 9.50 | K190: №386 СБ
A191: (яблоки,или апельсин, или банан,или мандарин ) | K191: дошк.2016
A192: Запеканка творожная с повидлом | C192: 110/20 | F192: 19.37 | G192: 13.26 | H192: 31.87 | I192: 321.70 | J192: 0.36 | K192: № 251 сб дошк 2016
B193: Творог | D193: 103.2 | E193: 101.2
B194: крупа манная | D194: 6.6 | E194: 6.6
B195: Яйцо | D195: 5.28 | E195: 4.4
B196: Сахар | D196: 8.8 | E196: 8.8
B197: Сметана | D197: 4.4 | E197: 4.4
B198: Масло сливочное | D198: 4.4 | E198: 4.4
B199: Сухари панировочные | D199: 4.4 | E199: 4.4
B200: соль иодированная | D200: 0.55 | E200: 0.55
B201: повидло | D201: 20 | E201: 20
A202: Чай с сахаром и лимоном | C202: 150/8/5 | F202: 0.07 | G202: 0.01 | H202: 7.10 | I202: 29.00 | J202: 1.60 | K202: №393 Дели2010
B203: чай весовой | D203: 0.4 | E203: 0.4
B204: Сахар | D204: 8 | E204: 8
B205: лимон | D205: 5.55 | E205: 5
... 858 more rows
